bitfinex-derivatives/quotes_SOLF0:USTF0_20241029
["timestamp","ask_amount","ask_price","bid_price","bid_amount"]
[1730168432521,10.1631,180.85,180.73,29.8270265]
[1730168432920,6.5499,180.85,180.79,2.7676]
[1730168433124,6.38,180.87,180.77,23.4470265]
[1730168433532,6.38,180.87,180.81,2.7673]
[1730168433719,6.38,180.87,180.77,23.4470265]
[1730168434521,6.38,180.91,180.78,38.01067747]
[1730168435117,2.7664,180.88,180.81,2.7673]
[1730168435321,6.38,180.91,180.75,38.01067747]
[1730168435322,38.01067747,180.9,180.75,38.01067747]
[1730168435724,2.7667,180.86,180.75,38.01067747]
[1730168436027,38.01067747,180.9,180.75,38.01067747]
[1730168436237,38.01067747,180.9,180.81,2.7673]
[1730168436417,38.01067747,180.9,180.75,38.01067747]
[1730168437020,6.38,180.91,180.7,38.01067747]
[1730168437021,38.01067747,180.87,180.7,38.01067747]
[1730168437327,38.01067747,180.87,180.71,6.38]
[1730168438127,38.01067747,180.84,180.71,6.38]
[1730168438326,6.38,180.83,180.7,38.01067747]
[1730168441040,6.38,180.83,180.74,2.7683]
[1730168441041,2.7678,180.79,180.74,2.7683]
[1730168441333,2.7678,180.79,180.7,38.01067747]
[1730168441534,2.7679,180.78,180.73,2.7685]
[1730168441733,6.38,180.83,180.7,38.01067747]
[1730168441927,2.7678,180.79,180.72,2.7687]
[1730168442133,1.1931,180.82,180.7,38.01067747]
[1730168442333,1.1931,180.82,180.73,38.01067747]
[1730168442930,6.38,180.83,180.73,38.01067747]
[1730168443230,6.38,180.83,180.76,38.01067747]
[1730168443537,2.7671,180.83,180.78,2.7678]
[1730168443740,6.38,180.86,180.78,2.7678]
[1730168443934,2.767,180.84,180.78,2.7678]
[1730168444234,1.1931,180.89,180.78,2.7678]
[1730168444431,6.54,180.86,180.78,2.7678]
[1730168444828,6.54,180.86,180.72,6.38]
[1730168445029,6.54,180.86,180.7,38.01067747]
[1730168445030,6.54,180.86,180.75,2.7682]
[1730168445229,6.54,180.86,180.7,44.55067747]
[1730168445535,2.7676,180.8,180.74,2.7684]
[1730168445734,6.54,180.86,180.73,38.01067747]
[1730168446648,6.54,180.86,180.77,38.01067747]
[1730168446649,2.7667,180.86,180.77,38.01067747]
[1730168447044,7.7331,180.89,180.77,38.01067747]
[1730168447242,1.3095,180.93,180.8,38.01067747]
[1730168447449,1.3095,180.93,180.84,38.01067747]
[1730168447946,2.7661,180.9,180.81,38.01067747]
[1730168448254,1.3095,180.93,180.81,38.01067747]
[1730168448441,2.7664,180.88,180.83,2.767]
[1730168448644,2.7664,180.88,180.81,38.01067747]
[1730168448947,2.7664,180.88,180.83,2.767]
[1730168449354,2.7662,180.89,180.78,38.01067747]
[1730168449538,6.54,180.89,180.81,2.7672]
[1730168449839,6.54,180.89,180.78,38.01067747]
[1730168450040,6.54,180.89,180.76,44.55067747]
[1730168450350,2.7668,180.85,180.76,44.55067747]
[1730168450644,6.54,180.95,180.84,2.7668]
[1730168450946,6.54,180.94,180.79,38.01067747]
[1730168451546,2.766,180.9,180.79,38.01067747]
[1730168451844,6.54,180.94,180.79,38.01067747]
[1730168452045,2.7662,180.89,180.83,2.7669]
[1730168453244,6.54,180.88,180.76,38.01067747]
[1730168453449,2.7669,180.85,180.79,2.7676]
[1730168453652,45.73217747,180.88,180.73,44.55067747]
[1730168454045,2.7669,180.84,180.79,2.7675]
[1730168454350,38.01067747,180.85,180.7,38.01067747]
[1730168454549,1.1815,180.88,180.8,23.40678697]
[1730168454750,1.2568,180.9,180.8,23.40678697]
[1730168454953,3.9873,180.93,180.88,2.7663]
[1730168455251,1.2217,180.93,180.83,23.40678697]
[1730168456049,2.4551,180.95,180.83,23.40678697]
[1730168456249,1.182,180.95,180.91,2.7658]
[1730168456445,1.2217,180.98,180.89,23.40678697]
[1730168457050,2.7653,180.95,180.89,2.766]
[1730168457353,1.2217,180.98,180.86,23.40678697]
[1730168457354,1.2217,180.98,180.91,23.40678697]
[1730168457557,1.2217,180.98,180.88,23.40678697]
[1730168457750,0.2,181.0,180.88,23.40678697]
[1730168457950,2.9645,181.0,180.93,2.7654]
[1730168458162,2.9645,181.0,180.91,23.40678697]
[1730168458163,0.2,181.0,180.91,23.40678697]
[1730168458346,0.2,181.0,180.94,23.40678697]
[1730168458550,0.2,181.0,180.94,2.7652]
[1730168458850,0.2,181.0,180.91,29.94678697]
[1730168459158,0.2,181.0,180.91,23.40678697]
[1730168459353,0.2,181.0,180.88,23.40678697]
[1730168459660,0.2,181.0,180.88,29.94678697]
[1730168459952,0.2,181.0,180.88,6.54]
[1730168460342,2.7654,180.95,180.88,9.3061]
[1730168460546,23.40678697,180.99,180.85,23.40678697]
[1730168460755,2.7656,180.93,180.87,2.7664]
[1730168460957,6.54,180.96,180.85,23.40678697]
[1730168461351,2.7655,180.93,180.87,2.7663]
[1730168461556,29.94678697,180.96,180.81,23.40678697]
[1730168461759,23.40678697,180.93,180.78,23.40678697]
[1730168462061,2.4902,180.92,180.82,23.40678697]
[1730168462858,1.2773,180.98,180.88,23.40678697]
[1730168463063,2.4457,180.99,180.9,23.40678697]
[1730168463757,0.2,181.0,180.93,23.40678697]
[1730168464454,0.2,181.0,180.96,2.7649]
[1730168464655,0.2,181.0,180.9,23.40678697]
[1730168464856,6.52,180.99,180.87,29.94678697]
[1730168465158,23.40678697,180.97,180.82,23.40678697]
[1730168465346,1.1941,180.96,180.82,23.40678697]
[1730168465551,2.7657,180.92,180.84,2.7669]
[1730168465862,6.52,180.93,180.82,23.40678697]
[1730168466947,2.7657,180.92,180.85,2.7667]
[1730168467261,6.52,180.93,180.79,23.40678697]
[1730168467460,2.7658,180.91,180.86,2.7666]
[1730168467758,6.52,180.93,180.82,23.40678697]
[1730168467956,2.7662,180.89,180.82,2.7671]
[1730168468261,6.52,180.93,180.82,23.40678697]
[1730168468657,6.52,180.93,180.8,23.40678697]
[1730168469458,1.1941,180.96,180.85,23.40678697]
[1730168469654,2.7655,180.94,180.89,2.766]
[1730168469857,2.4274,180.96,180.85,23.40678697]
[1730168470159,2.4274,180.96,180.82,23.40678697]
[1730168470351,2.766,180.91,180.86,2.7666]
[1730168470553,3.7242,180.96,180.85,23.40678697]
[1730168470757,2.7657,180.92,180.87,2.7664]
[1730168470961,3.7242,180.96,180.82,23.40678697]
[1730168471457,2.766,180.91,180.84,2.7668]
[1730168471663,6.52,180.9,180.79,23.40678697]
[1730168471853,6.52,180.9,180.76,6.52]
[1730168471854,6.52,180.9,180.81,23.40678697]
[1730168472162,23.40678697,180.94,180.85,23.40678697]
[1730168472163,6.52,180.94,180.85,23.40678697]
[1730168472966,3.7242,180.96,180.88,23.40678697]
[1730168473264,2.765,180.97,180.91,2.7658]
[1730168473466,0.2,181.0,180.88,23.40678697]
[1730168473853,0.2,181.0,180.9,23.40678697]
[1730168473854,6.72,181.0,180.9,23.40678697]
[1730168474261,6.72,181.0,180.94,2.7654]
[1730168474665,6.72,181.0,180.9,23.40678697]
[1730168475258,6.72,181.0,180.95,2.7651]
[1730168475460,6.72,181.0,180.9,23.40678697]
[1730168475659,6.72,181.0,180.93,23.40678697]
[1730168475862,6.72,181.0,180.99,2.7646]
[1730168475863,0.2,181.0,180.99,2.7646]
[1730168476062,6.68,181.13,180.99,23.40678697]
[1730168476270,6.68,181.12,180.99,23.40678697]
[1730168476968,1.3071,181.14,181.02,23.40678697]
[1730168477166,7.9871,181.14,181.02,23.40678697]
[1730168477467,7.9871,181.14,181.05,23.40678697]
[1730168477762,1.2521,181.15,181.05,23.40678697]
[1730168478164,2.7628,181.12,181.05,2.7636]
[1730168478364,2.7628,181.12,181.02,23.40678697]
[1730168478365,1.2521,181.15,181.02,23.40678697]
[1730168478762,2.7625,181.13,181.05,2.7636]
[1730168478972,1.2521,181.15,181.04,23.40678697]
[1730168479854,4.0144,181.15,181.07,2.7633]
[1730168480053,4.0144,181.15,181.04,23.40678697]
[1730168480054,1.2521,181.15,181.04,23.40678697]
[1730168480267,1.212,181.16,181.08,23.40678697]
[1730168480475,1.212,181.16,181.05,6.66]
[1730168480476,2.7617,181.18,181.05,6.66]
[1730168480768,1.1882,181.21,181.1,23.40678697]
[1730168480969,2.762,181.16,181.1,2.7628]
[1730168481278,1.1882,181.21,181.07,23.40678697]
[1730168481562,2.7616,181.19,181.13,2.7624]
[1730168481960,1.1882,181.21,181.07,23.40678697]
[1730168482159,1.1882,181.21,181.14,23.40678697]
[1730168482359,2.4555,181.24,181.14,23.40678697]
[1730168482867,1.207,181.28,181.17,23.40678697]
[1730168483256,2.7609,181.24,181.17,26.16858697]
[1730168483460,1.207,181.28,181.17,23.40678697]
[1730168483655,6.66,181.29,181.17,23.40678697]
[1730168484368,3.6859,181.33,181.17,23.40678697]
[1730168484558,2.83154519,181.39,181.27,23.40678697]
[1730168484867,6.66,181.42,181.27,23.40678697]
[1730168485066,2.4181,181.38,181.27,23.40678697]
[1730168485366,1.2854,181.41,181.27,23.40678697]
[1730168485575,1.2854,181.41,181.3,23.40678697]
[1730168485870,1.2854,181.41,181.31,2.7596]
[1730168486058,2.4724,181.43,181.27,23.40678697]
[1730168486059,2.4724,181.43,181.33,23.40678697]
[1730168486366,2.7583,181.41,181.33,23.40678697]
[1730168486567,2.4724,181.43,181.33,37.90878913]
[1730168486764,7.0,181.45,181.33,37.90878913]
[1730168487069,538.26496223,181.62,181.39,37.90878913]
[1730168487259,2.4656,181.54,181.39,37.90878913]
[1730168487862,2.7576,181.45,181.34,2.7593]
[1730168488063,7.0,181.49,181.36,37.90878913]
[1730168488460,2.4656,181.54,181.43,37.90878913]
[1730168488659,37.90878913,181.53,181.4,37.90878913]
[1730168488865,2.4549,181.53,181.43,37.90878913]
[1730168489464,2.7573,181.47,181.4,37.90878913]
[1730168489665,9.7749,181.53,181.4,37.90878913]
[1730168490059,2.7573,181.47,181.4,37.90878913]
[1730168490263,2.7573,181.47,181.35,7.32]
[1730168490264,9.7749,181.53,181.43,37.90878913]
[1730168490468,2.7578,181.44,181.4,37.90878913]
[1730168490665,9.7749,181.53,181.4,37.90878913]
[1730168490666,47.68368913,181.53,181.4,37.90878913]
[1730168490869,37.90878913,181.5,181.37,37.90878913]
[1730168491078,9.7749,181.53,181.31,37.90878913]
[1730168491079,37.90878913,181.47,181.31,37.90878913]
[1730168491374,37.90878913,181.47,181.34,37.90878913]
[1730168491375,7.32,181.46,181.34,37.90878913]
[1730168492067,2.7584,181.4,181.34,37.90878913]
[1730168492272,7.32,181.46,181.37,37.90878913]
[1730168492462,7.32,181.46,181.34,37.90878913]
[1730168492666,2.7584,181.4,181.34,37.90878913]
[1730168492873,7.32,181.46,181.37,37.90878913]
[1730168493069,40.36368913,181.53,181.4,40.66708913]
[1730168493070,2.7572,181.48,181.4,40.66708913]
[1730168493269,7.3,181.52,181.4,37.90878913]
[1730168493670,2.7574,181.47,181.4,40.66708913]
[1730168493871,7.3,181.52,181.37,37.90878913]
[1730168494277,37.90878913,181.47,181.3,37.90878913]
[1730168494478,37.90878913,181.47,181.27,66.96]
[1730168494479,7.3,181.46,181.34,37.90878913]
[1730168495068,7.3,181.46,181.34,40.66808913]
[1730168495466,7.3,181.46,181.34,37.90878913]
[1730168495882,7.3,181.46,181.36,37.90878913]
[1730168496077,7.3,181.46,181.33,45.20878913]
[1730168496275,7.3,181.46,181.36,37.90878913]
[1730168496474,2.7578,181.44,181.36,37.90878913]
[1730168496784,13.00546187,181.57,181.41,44.76541182]
[1730168496972,13.00546187,181.57,181.44,44.76541182]
[1730168497275,13.00546187,181.57,181.43,24.0]
[1730168497478,7.3,181.56,181.43,24.0]
[1730168498180,44.76541182,181.55,181.43,24.0]
[1730168498682,7.3,181.54,181.43,24.0]
[1730168499080,2.7567,181.51,181.43,24.0]
[1730168499380,44.76541182,181.55,181.43,24.0]
[1730168499580,7.3,181.54,181.43,24.0]
[1730168499774,2.7571,181.49,181.43,24.0]
[1730168500079,7.3,181.54,181.43,44.76541182]
[1730168500276,2.7575,181.46,181.43,44.76541182]
[1730168500484,7.3,181.54,181.41,7.3]
[1730168500870,7.3,181.54,181.43,44.76541182]
[1730168501379,2.7571,181.49,181.43,44.76541182]
[1730168501578,7.3,181.54,181.43,44.76541182]
[1730168502183,7.3,181.54,181.41,7.3]
[1730168502382,2.7568,181.51,181.42,2.758]
[1730168502693,44.76541182,181.52,181.37,44.76541182]
[1730168503075,44.76541182,181.52,181.39,2.7585]
[1730168503276,44.76541182,181.52,181.37,44.76541182]
[1730168503483,2.7578,181.44,181.38,2.7585]
[1730168503873,7.64,181.48,181.37,44.76541182]
[1730168504088,2.7579,181.44,181.38,2.7586]
[1730168504385,7.64,181.48,181.38,2.7586]
[1730168504786,2.7579,181.44,181.38,2.7586]
[1730168505083,2.7579,181.44,181.33,7.3]
[1730168505084,7.64,181.48,181.33,7.3]
[1730168505379,7.64,181.48,181.27,59.66]
[1730168505380,7.64,181.48,181.35,44.76541182]
[1730168505583,2.4754,181.47,181.32,44.76541182]
[1730168506174,2.7585,181.39,181.33,2.7593]
[1730168507688,2.7585,181.39,181.34,2.7593]
[1730168507887,2.7593,181.35,181.32,44.76541182]
[1730168508080,45.94981182,181.46,181.27,7.64]
[1730168508081,7.64,181.4,181.3,2.7598]
[1730168508277,7.64,181.39,181.3,2.7598]
[1730168508478,7.64,181.39,181.26,44.76541182]
[1730168508679,7.64,181.39,181.18,59.6]
[1730168508680,7.64,181.39,181.32,44.76541182]
[1730168508881,45.94981182,181.46,181.32,44.76541182]
[1730168508882,2.7587,181.38,181.32,44.76541182]
[1730168509075,7.64,181.44,181.33,2.7594]
[1730168509281,7.64,181.44,181.32,44.76541182]
[1730168510279,7.64,181.43,181.32,47.52501182]
[1730168510482,2.7584,181.4,181.32,27.57637061]
[1730168510682,7.64,181.43,181.32,27.57637061]
[1730168511086,59.6,181.48,181.35,27.57637061]
[1730168511397,7.64,181.47,181.35,27.57637061]
[1730168511583,7.64,181.47,181.33,27.57637061]
[1730168512386,7.64,181.47,181.36,27.57637061]
[1730168512689,59.6,181.48,181.31,7.64]
[1730168512887,2.5475,181.51,181.39,27.57637061]
[1730168512888,7.64,181.49,181.39,27.57637061]
[1730168513589,2.5475,181.51,181.23,7.64]
[1730168513590,27.57637061,181.46,181.23,7.64]
[1730168513891,27.57637061,181.46,181.36,2.7589]
[1730168514090,7.64,181.45,181.34,27.57637061]
[1730168514291,7.64,181.45,181.31,27.57637061]
[1730168514487,2.5475,181.51,181.31,27.57637061]
[1730168514688,2.5475,181.51,181.25,27.57637061]
[1730168514689,27.57637061,181.41,181.25,27.57637061]
[1730168514890,10.1705,181.4,181.25,27.57637061]
[1730168515088,11.4608,181.4,181.25,27.57637061]
[1730168515296,2.7587,181.38,181.32,2.7595]
[1730168515594,11.4608,181.4,181.26,27.57637061]
[1730168517288,11.4608,181.4,181.29,27.57637061]
[1730168518092,2.7589,181.37,181.29,30.33637061]
[1730168518296,2.7589,181.37,181.23,7.64]
[1730168518297,11.4608,181.4,181.26,27.57637061]
[1730168518498,27.57637061,181.38,181.26,27.57637061]
[1730168518799,27.57637061,181.38,181.2,27.57637061]
[1730168518800,27.57637061,181.36,181.2,27.57637061]
[1730168519091,27.57637061,181.36,181.14,7.64]
[1730168519092,2.7593,181.34,181.25,2.7606]
[1730168519286,27.57637061,181.38,181.23,27.57637061]
[1730168519488,7.64,181.37,181.23,27.57637061]
[1730168519689,7.64,181.37,181.24,2.7607]
[1730168519894,7.64,181.37,181.23,27.57637061]
[1730168520296,10.49182173,181.68,181.36,82.72911183]
[1730168520489,8.98664779,181.9,181.65,27.57637061]
[1730168520689,1.2178,181.83,181.68,27.57637061]
[1730168520885,1.2178,181.83,181.57,8.56]
[1730168520886,27.57637061,181.82,181.57,8.56]
[1730168521085,27.57637061,181.82,181.64,27.57637061]
[1730168521293,2.753,181.76,181.64,27.57637061]
[1730168521496,2.70407203,181.82,181.64,27.57637061]
[1730168521886,2.70407203,181.82,181.59,8.56]
[1730168521887,10.1178,181.83,181.67,27.57637061]
[1730168522197,10.1178,181.83,181.7,27.57637061]
[1730168522397,12.8697,181.83,181.7,27.57637061]
[1730168522590,10.1178,181.83,181.67,27.57637061]
[1730168523094,12.8697,181.83,181.67,27.57637061]
[1730168523297,10.1178,181.83,181.67,27.57637061]
[1730168523494,2.7522,181.81,181.67,27.57637061]
[1730168523996,3.9698,181.83,181.7,27.57637061]
[1730168524189,1.2178,181.83,181.7,27.57637061]
[1730168524390,8.9,181.8,181.66,27.57637061]
[1730168524595,8.9,181.8,181.1,7.39392515]
[1730168524596,8.9,181.8,181.65,44.753047]
[1730168525202,2.7528,181.77,181.65,44.753047]
[1730168525399,44.753047,181.77,181.61,44.753047]
[1730168525800,47.505847,181.77,181.61,44.753047]
[1730168525992,8.9,181.76,181.64,44.753047]
[1730168526906,8.9,181.76,181.61,44.753047]
[1730168527203,2.7534,181.73,181.61,44.753047]
[1730168527405,44.753047,181.71,181.55,44.753047]
[1730168527612,44.753047,181.71,181.55,43.903047]
[1730168527613,2.7547,181.64,181.55,43.903047]
[1730168527907,8.9,181.66,181.55,43.903047]
[1730168528102,8.9,181.68,181.55,43.903047]
[1730168528296,2.43912972,181.72,181.58,44.753047]
[1730168528497,8.9,181.71,181.58,44.753047]
[1730168529098,11.6538,181.71,181.58,44.753047]
[1730168529298,2.43912972,181.72,181.58,44.753047]
[1730168529995,2.43912972,181.72,181.62,44.753047]
[1730168530199,2.43912972,181.72,181.59,44.753047]
[1730168530399,47.19217672,181.72,181.56,44.753047]
[1730168530611,2.7545,181.66,181.54,44.753047]
[1730168530905,8.9,181.65,181.54,44.753047]
[1730168531108,10.152,181.65,181.54,44.753047]
[1730168532714,10.152,181.65,181.5,44.753047]
[1730168533121,44.753047,181.63,181.48,44.753047]
[1730168533311,2.7554,181.6,181.48,44.753047]
[1730168533721,44.753047,181.6,181.43,44.753047]
[1730168533916,1.1992,181.59,181.43,44.753047]
[1730168534119,8.9,181.58,181.47,44.753047]
[1730168534322,2.7558,181.57,181.47,44.753047]
[1730168534523,8.9,181.58,181.47,44.753047]
[1730168534721,8.9,181.58,181.4,8.9]
[1730168534920,2.7566,181.52,181.41,44.753047]
[1730168535137,1.1992,181.59,181.41,44.753047]
[1730168535138,8.9,181.51,181.41,44.753047]
[1730168535422,2.7559,181.56,181.47,44.753047]
[1730168535628,8.9,181.55,181.47,44.753047]
[1730168535823,1.1992,181.59,181.5,44.753047]
[1730168536013,8.9,181.62,181.53,44.753047]
[1730168536917,1.252,181.65,181.53,44.753047]
[1730168537117,2.755,181.62,181.53,44.753047]
[1730168537428,8.9,181.64,181.53,44.753047]
[1730168537617,44.753047,181.63,181.5,44.753047]
[1730168538121,2.7553,181.6,181.5,44.753047]
[1730168538320,8.9,181.64,181.5,44.753047]
[1730168538513,44.753047,181.63,181.47,44.753047]
[1730168538823,44.753047,181.63,181.39,59.54]
[1730168538824,44.753047,181.6,181.44,44.753047]
[1730168539228,44.753047,181.57,181.44,44.753047]
[1730168539426,69.6198,181.56,181.4,44.753047]
[1730168539921,44.753047,181.54,181.4,44.753047]
[1730168540221,44.753047,181.54,181.38,44.753047]
[1730168540424,44.753047,181.5,181.34,47.512247]
[1730168540624,8.9,181.49,181.34,47.512247]
[1730168540828,44.753047,181.47,181.31,44.753047]
[1730168541028,44.753047,181.41,181.28,44.753047]
[1730168541330,8.9,181.4,181.28,44.753047]
[1730168541524,8.9,181.4,181.18,8.9]
[1730168541525,8.9,181.4,181.26,44.753047]
[1730168541718,44.753047,181.38,181.18,8.9]
[1730168541916,44.753047,181.36,181.11,59.54]
[1730168542116,44.753047,181.36,181.18,44.753047]
[1730168542620,44.753047,181.36,181.21,44.753047]
[1730168542824,2.4903,181.39,181.24,44.753047]
[1730168542825,8.56,181.35,181.24,44.753047]
[1730168543124,2.7592,181.35,181.24,44.753047]
[1730168543426,47.243347,181.39,181.24,44.753047]
[1730168543628,8.56,181.38,181.27,44.753047]
[1730168544020,2.7587,181.38,181.28,2.76]
[1730168544219,8.56,181.37,181.28,2.76]
[1730168544416,1.2523,181.39,181.3,44.753047]
[1730168544621,8.56,181.41,181.33,44.753047]
[1730168545130,8.56,181.41,181.3,44.753047]
[1730168545424,2.7585,181.39,181.3,44.753047]
[1730168545935,8.56,181.41,181.21,8.56]
[1730168545936,2.759,181.36,181.28,44.81455659]
[1730168546322,8.56,181.41,181.28,44.81455659]
[1730168546730,8.56,181.41,181.31,44.81455659]
[1730168547029,1.3048,181.42,181.34,44.81455659]
[1730168547231,44.81455659,181.48,181.34,44.81455659]
[1730168547232,8.56,181.46,181.34,44.81455659]
[1730168548327,8.56,181.46,181.37,44.81455659]
[1730168548530,8.56,181.46,181.34,44.81455659]
[1730168548928,8.56,181.46,181.28,8.56]
[1730168548929,44.81455659,181.45,181.31,44.81455659]
[1730168549526,2.7583,181.41,181.33,2.7593]
[1730168549730,44.81455659,181.51,181.37,44.81455659]
[1730168549929,8.56,181.5,181.37,44.81455659]
[1730168550229,8.56,181.5,181.39,2.7584]
[1730168550731,2.7573,181.47,181.39,2.5084]
[1730168550923,2.3734,181.52,181.41,2.7582]
[1730168551122,8.56,181.5,181.41,2.7582]
[1730168551328,2.3734,181.52,181.4,44.81455659]
[1730168551625,2.3734,181.52,181.3,8.56]
[1730168551626,44.81455659,181.48,181.3,8.56]
[1730168551832,10.9334,181.52,181.39,44.81455659]
[1730168552034,10.9334,181.52,181.4,2.7583]
[1730168552532,2.3734,181.52,181.4,2.7583]
[1730168552726,2.3734,181.52,181.4,44.76760125]
[1730168553330,47.14100125,181.52,181.37,44.76760125]
[1730168553631,2.7574,181.47,181.37,44.76760125]
[1730168553830,45.95160125,181.52,181.38,2.7585]
[1730168554029,3.9405,181.52,181.4,44.76760125]
[1730168554225,1.2222,181.57,181.43,44.76760125]
[1730168554726,1.2222,181.57,181.3,44.76760125]
[1730168554727,44.76760125,181.52,181.36,44.76760125]
[1730168554928,1.2222,181.57,181.3,44.76760125]
[1730168554929,44.76760125,181.49,181.3,8.56]
[1730168555130,8.56,181.48,181.34,44.76760125]
[1730168555323,8.56,181.48,181.3,53.32760125]
[1730168555324,2.7578,181.44,181.37,44.76760125]
[1730168556131,2.7576,181.45,181.37,44.76760125]
[1730168556332,8.56,181.48,181.37,44.76760125]
[1730168556538,8.56,181.48,181.3,8.56]
[1730168556835,8.56,181.48,181.34,44.76760125]
[1730168557034,8.56,181.48,181.37,44.76760125]
[1730168557341,8.56,181.48,181.34,44.76760125]
[1730168557826,2.7581,181.42,181.37,2.7588]
[1730168559032,1.2222,181.57,181.4,44.76760125]
[1730168559336,1.2222,181.57,181.44,44.76760125]
[1730168559337,8.56,181.55,181.44,44.76760125]
[1730168559533,2.7564,181.53,181.47,2.7573]
[1730168559839,2.7564,181.53,181.44,44.76760125]
[1730168559840,8.56,181.55,181.44,44.76760125]
[1730168560036,2.7578,181.44,181.39,2.7584]
[1730168560228,44.76760125,181.54,181.38,44.76760125]
[1730168560536,44.76760125,181.54,181.37,8.56]
[1730168560537,44.76760125,181.54,181.41,44.76760125]
[1730168560726,44.76760125,181.54,181.42,2.7579]
[1730168560931,44.76760125,181.54,181.41,44.76760125]
[1730168561128,8.56,181.55,181.41,44.76760125]
[1730168561438,2.757,181.5,181.44,2.7576]
[1730168562624,53.32760125,181.55,181.43,2.7579]
[1730168562828,1.2222,181.57,181.44,44.76760125]
[1730168562829,8.22,181.54,181.44,44.76760125]
[1730168563129,2.7565,181.52,181.47,2.7573]
[1730168563533,8.22,181.55,181.44,44.76760125]
[1730168563731,8.22,181.55,181.41,44.76760125]
[1730168563927,8.22,181.55,181.43,2.7578]
[1730168564233,8.22,181.55,181.41,44.76760125]
[1730168564434,8.22,181.55,181.44,2.7577]
[1730168564737,2.7566,181.52,181.44,2.7577]
[1730168564929,8.22,181.55,181.41,44.76760125]
[1730168565634,52.98760125,181.55,181.38,44.76760125]
[1730168565838,52.98760125,181.55,181.3,44.76760125]
[1730168565839,44.76760125,181.48,181.3,44.76760125]
[1730168566138,10.7441,181.47,181.3,44.76760125]
[1730168566338,10.7441,181.47,181.38,44.76760125]
[1730168566541,8.22,181.47,181.38,44.76760125]
[1730168566738,44.76760125,181.54,181.42,44.76760125]
[1730168566739,8.22,181.54,181.42,44.76760125]
[1730168567138,2.7567,181.51,181.46,2.7573]
[1730168567441,8.22,181.54,181.42,44.76760125]
[1730168567646,2.7569,181.5,181.42,44.76760125]
[1730168568341,2.7569,181.5,181.45,2.7575]
[1730168568943,2.7569,181.5,181.42,44.76760125]
[1730168569143,2.7569,181.5,181.46,2.7574]
[1730168569336,2.7569,181.5,181.42,44.76760125]
[1730168569538,8.22,181.54,181.39,44.76760125]
[1730168569739,44.76760125,181.52,181.36,44.76760125]
[1730168569942,2.7578,181.44,181.36,44.76760125]
[1730168570131,44.76760125,181.52,181.36,44.76760125]
[1730168570839,44.76760125,181.49,181.37,2.7587]
[1730168571036,2.758,181.43,181.37,2.7587]
[1730168571233,8.22,181.47,181.37,2.7587]
[1730168571741,2.7581,181.42,181.36,2.7589]
[1730168572443,60.8131,181.58,181.39,44.76760125]
[1730168572444,44.76760125,181.54,181.39,44.76760125]
[1730168572643,44.76760125,181.54,181.33,8.22]
[1730168572644,8.22,181.53,181.41,44.76760125]
[1730168573038,8.22,181.53,181.44,2.7577]
[1730168573346,8.22,181.53,181.41,44.76760125]
[1730168573538,2.757,181.49,181.43,2.7579]
[1730168573738,8.22,181.53,181.41,44.76760125]
[1730168574147,2.7568,181.51,181.41,44.76760125]
[1730168574345,8.22,181.52,181.41,44.76760125]
[1730168575034,2.7569,181.5,181.44,2.7576]
[1730168575346,8.22,181.52,181.41,44.76760125]
[1730168576339,2.7568,181.51,181.45,2.7576]
[1730168576543,8.22,181.52,181.41,44.76760125]
[1730168577152,2.7572,181.48,181.43,2.7578]
[1730168577449,8.22,181.52,181.38,44.76760125]
[1730168577654,2.7578,181.44,181.39,2.7585]
[1730168577856,2.7578,181.44,181.35,7.88]
[1730168577857,44.76760125,181.51,181.35,52.64760125]
[1730168578154,2.7578,181.44,181.39,2.7585]